{"text_format":"1","workbook":"xlsx","n_sheets":3,"sheets":["Inventaire d’entrepôt","Prélèvements stock","Emplacement des stocks"],"not_rendered":{"charts":0,"images":0,"macros":1,"external_links":0,"defined_names":8,"comments":0,"pivot_tables":0},"unopened":[],"bounds":{"document_bytes":16777216,"sheet_cells":100000,"rows_first":2000,"rows_last":500,"rows_between":2000,"halvings":0,"cell_chars":16384,"cell_head_chars":4096},"cells_cut":0,"cells_raw":0,"read":"whole","date_system":"1900"}

{"sheet":"Inventaire d’entrepôt","index":0,"n_rows":15,"n_cols":11,"rows_kept":15,"cut":false,"hidden":false,"merged":[]}
[null,"INVENTAIRE D’ENTREPÔT"]
[null,"VALEUR DE STOCK TOTALE :","NOMBRE D’ARTICLES :","NOMBRE DE BACS :","PRÉLÈVEMENTS STOCK","EMPLACEMENT DES STOCKS"]
[null,{"$f":"SUM(Inventaire[VALEUR DE STOCK])","v":4649},{"$f":"COUNTA(Inventaire[DESCRIPTION])","v":11},{"$f":"SUMPRODUCT((1/COUNTIF(Inventaire[N° DE BAC],Inventaire[N° DE BAC]&\"\")))","v":6}]
[null,"RÉFÉRENCE","DESCRIPTION","N° DE BAC","EMPLACEMENT","UNITÉ","QTÉ","QTÉ DE RÉAPPROVISIONNEMENT","PRIX","VALEUR DE STOCK","RÉAPPROVISIONNEMENT"]
[null,"SP7875","Article 1","T345",{"$f":"IFERROR(VLOOKUP(Inventaire[[#This Row],[N° DE BAC]],EmplacementStocks[],3,FALSE),\"\")","v":"Rangée 2, emplacement 1"},"Unité",20,10,30,{"$f":"Inventaire[[#This Row],[QTÉ]]*Inventaire[[#This Row],[PRIX]]","v":600},{"$f":"IFERROR(IF(Inventaire[[#This Row],[QTÉ]]<=Inventaire[[#This Row],[QTÉ DE RÉAPPROVISIONNEMENT]],1,0),0)","v":0}]
[null,"TR87680","Article 2","T345",{"$f":"IFERROR(VLOOKUP(Inventaire[[#This Row],[N° DE BAC]],EmplacementStocks[],3,FALSE),\"\")","v":"Rangée 2, emplacement 1"},"Unité",30,15,40,{"$f":"Inventaire[[#This Row],[QTÉ]]*Inventaire[[#This Row],[PRIX]]","v":1200},{"$f":"IFERROR(IF(Inventaire[[#This Row],[QTÉ]]<=Inventaire[[#This Row],[QTÉ DE RÉAPPROVISIONNEMENT]],1,0),0)","v":0}]
[null,"MK676554","Article 3","T5789",{"$f":"IFERROR(VLOOKUP(Inventaire[[#This Row],[N° DE BAC]],EmplacementStocks[],3,FALSE),\"\")","v":"Rangée 1, emplacement 1"},"Unité",10,5,5,{"$f":"Inventaire[[#This Row],[QTÉ]]*Inventaire[[#This Row],[PRIX]]","v":50},{"$f":"IFERROR(IF(Inventaire[[#This Row],[QTÉ]]<=Inventaire[[#This Row],[QTÉ DE RÉAPPROVISIONNEMENT]],1,0),0)","v":0}]
[null,"YE98767","Article 4","T9876",{"$f":"IFERROR(VLOOKUP(Inventaire[[#This Row],[N° DE BAC]],EmplacementStocks[],3,FALSE),\"\")","v":"Rangée 3, emplacement 2"},"Boîte (10)",40,10,15,{"$f":"Inventaire[[#This Row],[QTÉ]]*Inventaire[[#This Row],[PRIX]]","v":600},{"$f":"IFERROR(IF(Inventaire[[#This Row],[QTÉ]]<=Inventaire[[#This Row],[QTÉ DE RÉAPPROVISIONNEMENT]],1,0),0)","v":0}]
[null,"XR23423","Article 5","T098",{"$f":"IFERROR(VLOOKUP(Inventaire[[#This Row],[N° DE BAC]],EmplacementStocks[],3,FALSE),\"\")","v":"Rangée 3, emplacement 1"},"Unité",12,10,26,{"$f":"Inventaire[[#This Row],[QTÉ]]*Inventaire[[#This Row],[PRIX]]","v":312},{"$f":"IFERROR(IF(Inventaire[[#This Row],[QTÉ]]<=Inventaire[[#This Row],[QTÉ DE RÉAPPROVISIONNEMENT]],1,0),0)","v":0}]
[null,"PW98762","Article 6","T345",{"$f":"IFERROR(VLOOKUP(Inventaire[[#This Row],[N° DE BAC]],EmplacementStocks[],3,FALSE),\"\")","v":"Rangée 2, emplacement 1"},"Unité",7,10,50,{"$f":"Inventaire[[#This Row],[QTÉ]]*Inventaire[[#This Row],[PRIX]]","v":350},{"$f":"IFERROR(IF(Inventaire[[#This Row],[QTÉ]]<=Inventaire[[#This Row],[QTÉ DE RÉAPPROVISIONNEMENT]],1,0),0)","v":1}]
[null,"BM87684","Article 7","T349",{"$f":"IFERROR(VLOOKUP(Inventaire[[#This Row],[N° DE BAC]],EmplacementStocks[],3,FALSE),\"\")","v":"Rangée 1, emplacement 2"},"Unité",10,5,10,{"$f":"Inventaire[[#This Row],[QTÉ]]*Inventaire[[#This Row],[PRIX]]","v":100},{"$f":"IFERROR(IF(Inventaire[[#This Row],[QTÉ]]<=Inventaire[[#This Row],[QTÉ DE RÉAPPROVISIONNEMENT]],1,0),0)","v":0}]
[null,"BH67655","Article 8","T5789",{"$f":"IFERROR(VLOOKUP(Inventaire[[#This Row],[N° DE BAC]],EmplacementStocks[],3,FALSE),\"\")","v":"Rangée 1, emplacement 1"},"Unité",19,10,3,{"$f":"Inventaire[[#This Row],[QTÉ]]*Inventaire[[#This Row],[PRIX]]","v":57},{"$f":"IFERROR(IF(Inventaire[[#This Row],[QTÉ]]<=Inventaire[[#This Row],[QTÉ DE RÉAPPROVISIONNEMENT]],1,0),0)","v":0}]
[null,"WT98768","Article 9","T9875",{"$f":"IFERROR(VLOOKUP(Inventaire[[#This Row],[N° DE BAC]],EmplacementStocks[],3,FALSE),\"\")","v":"Rangée 2, emplacement 2"},"Pack (5)",20,30,14,{"$f":"Inventaire[[#This Row],[QTÉ]]*Inventaire[[#This Row],[PRIX]]","v":280},{"$f":"IFERROR(IF(Inventaire[[#This Row],[QTÉ]]<=Inventaire[[#This Row],[QTÉ DE RÉAPPROVISIONNEMENT]],1,0),0)","v":1}]
[null,"TS3456","Article 10","T349",{"$f":"IFERROR(VLOOKUP(Inventaire[[#This Row],[N° DE BAC]],EmplacementStocks[],3,FALSE),\"\")","v":"Rangée 1, emplacement 2"},"Unité",15,8,60,{"$f":"Inventaire[[#This Row],[QTÉ]]*Inventaire[[#This Row],[PRIX]]","v":900},{"$f":"IFERROR(IF(Inventaire[[#This Row],[QTÉ]]<=Inventaire[[#This Row],[QTÉ DE RÉAPPROVISIONNEMENT]],1,0),0)","v":0}]
[null,"WDG123","Article 11","T349",{"$f":"IFERROR(VLOOKUP(Inventaire[[#This Row],[N° DE BAC]],EmplacementStocks[],3,FALSE),\"\")","v":"Rangée 1, emplacement 2"},"Unité",25,15,8,{"$f":"Inventaire[[#This Row],[QTÉ]]*Inventaire[[#This Row],[PRIX]]","v":200},{"$f":"IFERROR(IF(Inventaire[[#This Row],[QTÉ]]<=Inventaire[[#This Row],[QTÉ DE RÉAPPROVISIONNEMENT]],1,0),0)","v":0}]

{"sheet":"Prélèvements stock","index":1,"n_rows":9,"n_cols":9,"rows_kept":9,"cut":false,"hidden":false,"merged":[]}
[null,"PRÉLÈVEMENTS STOCK"]
[null,null,"INVENTAIRE"]
[]
[null,"N° DE COMMANDE","RÉFÉRENCE","QTÉ COMMANDÉE","QTÉ DISPONIBLE","DESCRIPTION DE L’ARTICLE","UNITÉ","N° DE BAC","EMPLACEMENT"]
[null,"TP001-1","SP7875",3,{"$f":"IFERROR(VLOOKUP(PrélèvementsStock[RÉFÉRENCE],Inventaire[],6,FALSE),\"\")","v":20},{"$f":"IFERROR(VLOOKUP(PrélèvementsStock[RÉFÉRENCE],Inventaire[],2,FALSE),\"\")","v":"Article 1"},{"$f":"IFERROR(VLOOKUP(PrélèvementsStock[RÉFÉRENCE],Inventaire[],5,FALSE),\"\")","v":"Unité"},{"$f":"IFERROR(VLOOKUP(PrélèvementsStock[RÉFÉRENCE],Inventaire[],3,FALSE),\"\")","v":"T345"},{"$f":"IFERROR(VLOOKUP(PrélèvementsStock[RÉFÉRENCE],Inventaire[],4,FALSE),\"\")","v":"Rangée 2, emplacement 1"}]
[null,"TP001-1","YE98767",1,{"$f":"IFERROR(VLOOKUP(PrélèvementsStock[RÉFÉRENCE],Inventaire[],6,FALSE),\"\")","v":40},{"$f":"IFERROR(VLOOKUP(PrélèvementsStock[RÉFÉRENCE],Inventaire[],2,FALSE),\"\")","v":"Article 4"},{"$f":"IFERROR(VLOOKUP(PrélèvementsStock[RÉFÉRENCE],Inventaire[],5,FALSE),\"\")","v":"Boîte (10)"},{"$f":"IFERROR(VLOOKUP(PrélèvementsStock[RÉFÉRENCE],Inventaire[],3,FALSE),\"\")","v":"T9876"},{"$f":"IFERROR(VLOOKUP(PrélèvementsStock[RÉFÉRENCE],Inventaire[],4,FALSE),\"\")","v":"Rangée 3, emplacement 2"}]
[null,"TP001-1","BM87684",2,{"$f":"IFERROR(VLOOKUP(PrélèvementsStock[RÉFÉRENCE],Inventaire[],6,FALSE),\"\")","v":10},{"$f":"IFERROR(VLOOKUP(PrélèvementsStock[RÉFÉRENCE],Inventaire[],2,FALSE),\"\")","v":"Article 7"},{"$f":"IFERROR(VLOOKUP(PrélèvementsStock[RÉFÉRENCE],Inventaire[],5,FALSE),\"\")","v":"Unité"},{"$f":"IFERROR(VLOOKUP(PrélèvementsStock[RÉFÉRENCE],Inventaire[],3,FALSE),\"\")","v":"T349"},{"$f":"IFERROR(VLOOKUP(PrélèvementsStock[RÉFÉRENCE],Inventaire[],4,FALSE),\"\")","v":"Rangée 1, emplacement 2"}]
[null,"TP001-1","TS3456",6,{"$f":"IFERROR(VLOOKUP(PrélèvementsStock[RÉFÉRENCE],Inventaire[],6,FALSE),\"\")","v":15},{"$f":"IFERROR(VLOOKUP(PrélèvementsStock[RÉFÉRENCE],Inventaire[],2,FALSE),\"\")","v":"Article 10"},{"$f":"IFERROR(VLOOKUP(PrélèvementsStock[RÉFÉRENCE],Inventaire[],5,FALSE),\"\")","v":"Unité"},{"$f":"IFERROR(VLOOKUP(PrélèvementsStock[RÉFÉRENCE],Inventaire[],3,FALSE),\"\")","v":"T349"},{"$f":"IFERROR(VLOOKUP(PrélèvementsStock[RÉFÉRENCE],Inventaire[],4,FALSE),\"\")","v":"Rangée 1, emplacement 2"}]
[null,"TP001-1","MK676554",3,{"$f":"IFERROR(VLOOKUP(PrélèvementsStock[RÉFÉRENCE],Inventaire[],6,FALSE),\"\")","v":10},{"$f":"IFERROR(VLOOKUP(PrélèvementsStock[RÉFÉRENCE],Inventaire[],2,FALSE),\"\")","v":"Article 3"},{"$f":"IFERROR(VLOOKUP(PrélèvementsStock[RÉFÉRENCE],Inventaire[],5,FALSE),\"\")","v":"Unité"},{"$f":"IFERROR(VLOOKUP(PrélèvementsStock[RÉFÉRENCE],Inventaire[],3,FALSE),\"\")","v":"T5789"},{"$f":"IFERROR(VLOOKUP(PrélèvementsStock[RÉFÉRENCE],Inventaire[],4,FALSE),\"\")","v":"Rangée 1, emplacement 1"}]

{"sheet":"Emplacement des stocks","index":2,"n_rows":11,"n_cols":7,"rows_kept":11,"cut":false,"hidden":false,"merged":[]}
[null,"EMPLACEMENT DES STOCKS"]
[null,"INVENTAIRE"]
[]
[null,"N° DE BAC","DESCRIPTION","EMPLACEMENT","LARGEUR","HAUTEUR","LONGUEUR"]
[null,"T345","Grand bac","Rangée 2, emplacement 1",50,10,10]
[null,"T5789","Petit bac","Rangée 1, emplacement 1",25,5,5]
[null,"T9876","Grand bac","Rangée 3, emplacement 2",50,10,10]
[null,"T098","Bac moyen","Rangée 3, emplacement 1",30,7,10]
[null,"T349","Petit bac","Rangée 1, emplacement 2",25,5,5]
[null,"T5789","Grand bac","Rangée 4, emplacement 5",50,10,10]
[null,"T9875","Grand bac","Rangée 2, emplacement 2",50,10,10]